bitfinex-derivatives/quotes_SOLF0:USTF0_20250211
["timestamp","ask_amount","ask_price","bid_price","bid_amount"]
[1739279020596,3.94,202.56,202.52,0.03235913]
[1739279020893,4.9358,202.55,202.52,0.03235913]
[1739279021094,3.94,202.56,202.52,0.03235913]
[1739279021595,4.936,202.55,202.52,0.03235913]
[1739279021997,8.8756,202.56,202.52,4.96885913]
[1739279022198,3.94,202.56,202.52,0.03235913]
[1739279022595,4.9363,202.53,202.52,0.03235913]
[1739279025000,13.16318356,202.55,202.45,4.9382]
[1739279025197,4.9375,202.48,202.44,2.9815]
[1739279025901,4.9375,202.48,202.44,7.9198]
[1739279026299,4.97063063,202.48,202.44,7.95333933]
[1739279026601,4.97063063,202.48,202.45,4.9382]
[1739279026801,0.03313063,202.48,202.45,4.9382]
[1739279027397,4.97063063,202.48,202.45,4.9382]
[1739279027804,4.97063063,202.48,202.44,7.95343933]
[1739279027998,0.03313063,202.48,202.44,0.03353933]
[1739279029901,4.97063063,202.48,202.45,4.938]
[1739279030704,0.03313063,202.48,202.47,4.9377]
[1739279032302,0.03313063,202.48,202.44,0.03353933]
[1739279032508,4.938,202.46,202.44,0.03353933]
[1739279033006,0.03313063,202.48,202.44,0.03353933]
[1739279033808,0.03313063,202.48,202.45,4.9382]
[1739279034509,4.97083063,202.48,202.44,4.97193933]
[1739279035402,4.9378,202.47,202.44,4.97193933]
[1739279035601,3.98313063,202.48,202.44,0.03353933]
[1739279036914,4.9382,202.46,202.44,0.03353933]
[1739279037611,4.9382,202.45,202.44,0.03353933]
[1739279039712,3.98313063,202.48,202.44,0.03353933]
[1739279041210,4.9382,202.45,202.44,0.03353933]
[1739279043114,3.98313063,202.48,202.44,0.03353933]
[1739279043717,8.92063063,202.48,202.45,4.938]
[1739279043917,3.98313063,202.48,202.44,0.03353933]
[1739279045313,3.98313063,202.48,202.47,4.9377]
[1739279046518,4.9361,202.54,202.5,4.9368]
[1739279047421,13.16318356,202.58,202.46,1.5483]
[1739279047622,13.16318356,202.58,202.5,0.03327614]
[1739279048322,4.9369,202.51,202.5,0.03327614]
[1739279050423,4.9382,202.45,202.41,1.5484]
[1739279050617,13.16318356,202.48,202.41,1.5484]
[1739279051024,13.16318356,202.48,202.39,4.9395]
[1739279051622,4.9383,202.45,202.41,0.03765959]
[1739279051925,0.03327614,202.46,202.41,0.03765959]
[1739279052625,13.16318356,202.45,202.41,0.03765959]
[1739279052825,4.9389,202.42,202.41,0.03765959]
[1739279056224,3.95,202.43,202.41,0.03765959]
[1739279056929,3.95,202.43,202.41,4.97685959]
[1739279057129,3.95,202.43,202.41,0.03765959]
[1739279058630,3.95,202.43,202.42,4.9389]
[1739279059934,3.95,202.43,202.41,0.03765959]
[1739279060333,8.8889,202.43,202.41,0.03765959]
[1739279060829,3.95,202.43,202.41,0.03765959]
[1739279061428,3.95,202.43,202.42,4.9389]
[1739279065539,3.95,202.43,202.41,0.03765959]
[1739279065833,3.95,202.43,202.41,4.97675959]
[1739279066535,3.95,202.43,202.42,4.9389]
[1739279071646,3.95,202.43,202.42,13.36685331]
[1739279072145,0.03327614,202.46,202.42,8.42795331]
[1739279072439,0.03327614,202.46,202.45,4.9382]
[1739279072639,0.03327614,202.46,202.43,1.5961]
[1739279072841,0.03327614,202.46,202.44,4.9384]
[1739279073246,0.03327614,202.46,202.44,8.42795331]
[1739279073448,0.03327614,202.46,202.45,4.9382]
[1739279077749,8.42795331,202.55,202.49,4.937]
[1739279077949,8.42795331,202.55,202.48,8.42795331]
[1739279078350,8.42795331,202.55,202.51,4.9366]
[1739279078751,8.42795331,202.55,202.51,4.97418505]
[1739279078954,4.9362,202.54,202.51,0.03758505]
[1739279079251,12.36795331,202.55,202.51,0.03758505]
[1739279080757,4.9365,202.52,202.51,0.03758505]
[1739279093059,12.36795331,202.55,202.51,0.03758505]
[1739279095462,4.9362,202.54,202.51,4.97428505]
[1739279095666,12.36795331,202.55,202.51,0.03758505]
[1739279096267,4.9365,202.52,202.51,0.03758505]
[1739279096966,12.36795331,202.55,202.51,0.03758505]
[1739279097165,4.9365,202.53,202.51,0.03758505]
[1739279097364,12.36795331,202.55,202.51,0.03758505]
[1739279098262,4.9361,202.54,202.51,0.03758505]
[1739279098469,12.36795331,202.55,202.51,0.03758505]
[1739279099066,4.9365,202.53,202.51,0.03758505]
[1739279100169,4.9365,202.52,202.51,0.03758505]
[1739279104568,12.36795331,202.55,202.51,0.03758505]
[1739279104772,17.30375331,202.55,202.52,4.9365]
[1739279104977,12.36795331,202.55,202.51,0.03758505]
[1739279105474,4.936,202.54,202.51,4.97408505]
[1739279105771,8.42795331,202.57,202.51,0.03758505]
[1739279105971,4.9358,202.55,202.52,4.9364]
[1739279107064,4.9358,202.55,202.51,0.03758505]
[1739279107264,4.9365,202.53,202.51,0.03758505]
[1739279108975,4.9365,202.52,202.51,0.03758505]
[1739279112780,3.95,202.52,202.51,0.03758505]
[1739279113781,3.95,202.52,202.51,4.97428505]
[1739279114382,3.95,202.52,202.51,0.03758505]
[1739279114780,8.8865,202.52,202.51,0.03758505]
[1739279115783,3.95,202.52,202.51,0.03758505]
[1739279116478,3.95,202.52,202.51,4.97428505]
[1739279117781,3.95,202.52,202.51,0.03758505]
[1739279118683,3.95,202.52,202.51,4.97428505]
[1739279121988,8.8865,202.52,202.51,0.03758505]
[1739279125387,3.95,202.52,202.51,4.97428505]
[1739279127988,3.95,202.52,202.51,0.03758505]
[1739279129190,3.95,202.52,202.51,4.97428505]
[1739279129389,3.95,202.52,202.51,0.03758505]
[1739279130689,3.95,202.52,202.51,4.97428505]
[1739279132991,8.42795331,202.59,202.56,4.9353]
[1739279133691,13.36295331,202.59,202.56,4.9353]
[1739279133891,8.42795331,202.59,202.55,0.0357957]
[1739279134282,4.9351,202.58,202.55,4.9713957]
[1739279135687,4.9351,202.58,202.55,0.0357957]
[1739279136994,4.9355,202.56,202.55,0.0357957]
[1739279139289,8.42795331,202.57,202.55,0.0357957]
[1739279140193,4.9355,202.56,202.55,0.0357957]
[1739279140693,8.42795331,202.57,202.55,0.0357957]
[1739279141092,3.94,202.57,202.55,0.0357957]
[1739279141795,8.8753,202.57,202.55,0.0357957]
[1739279142094,3.94,202.57,202.55,0.0357957]
[1739279142496,4.9355,202.56,202.55,0.0357957]
[1739279144296,4.9369,202.51,202.45,8.42795331]
[1739279144491,8.42795331,202.53,202.45,8.42795331]
[1739279144892,4.937,202.5,202.47,4.9375]
[1739279145396,0.031177,202.51,202.46,0.03410968]
[1739279145597,4.967977,202.51,202.48,4.9374]
[1739279145996,4.937,202.5,202.48,4.9374]
[1739279146296,0.031177,202.51,202.48,4.9374]
[1739279146495,0.031177,202.51,202.49,4.9372]
[1739279146895,4.967977,202.51,202.47,8.42795331]
[1739279147398,0.031177,202.51,202.48,4.9373]
[1739279147590,0.031177,202.51,202.47,8.42795331]
[1739279148900,0.031177,202.51,202.49,4.9371]
[1739279150990,4.967977,202.51,202.49,4.9371]
[1739279151195,4.967977,202.51,202.48,4.9374]
[1739279151599,0.031177,202.51,202.48,4.9374]
[1739279151795,4.937,202.5,202.47,4.9377]
[1739279151995,8.45913031,202.51,202.47,4.9377]
[1739279152497,4.9375,202.48,202.46,0.03410968]
[1739279154092,13.36525331,202.49,202.46,4.97200968]
[1739279154291,8.42795331,202.49,202.46,0.03410968]
[1739279155200,8.42795331,202.49,202.47,4.9376]
[1739279155698,4.937,202.5,202.47,4.9376]
[1739279156000,8.45913031,202.51,202.46,0.03410968]
[1739279156401,8.45913031,202.51,202.5,4.937]
[1739279156698,8.45913031,202.51,202.46,0.03410968]
[1739279157101,8.45913031,202.51,202.49,4.9372]
[1739279158707,8.45913031,202.51,202.46,0.03410968]
[1739279158708,8.45913031,202.51,202.5,4.937]
[1739279159400,8.45913031,202.51,202.46,0.03410968]
[1739279159704,0.031177,202.51,202.47,8.42795331]
[1739279160005,0.031177,202.51,202.5,4.937]
[1739279160407,0.031177,202.51,202.47,8.42795331]
[1739279160706,0.031177,202.51,202.48,4.9374]
[1739279160912,0.031177,202.51,202.47,8.42795331]
[1739279161604,0.031177,202.51,202.49,8.42795331]
[1739279162013,0.031177,202.51,202.5,4.937]
[1739279165214,0.031177,202.51,202.49,8.42795331]
[1739279165410,0.031177,202.51,202.47,8.42795331]
[1739279165610,0.031177,202.51,202.46,0.03410968]
[1739279166212,4.9372,202.5,202.46,4.97190968]
[1739279166610,4.9375,202.48,202.46,0.03410968]
[1739279166811,8.42795331,202.49,202.46,0.03410968]
[1739279167211,4.9375,202.48,202.46,0.03410968]
[1739279168713,8.42795331,202.49,202.46,0.03410968]
[1739279168714,13.36525331,202.49,202.46,0.03410968]
[1739279168915,8.42795331,202.49,202.46,0.03410968]
[1739279169213,8.42795331,202.47,202.46,0.03410968]
[1739279169414,8.42795331,202.47,202.39,1.4768]
[1739279169616,8.42795331,202.43,202.39,1.4768]
[1739279170118,8.42795331,202.43,202.37,8.42795331]
[1739279170513,0.03414156,202.42,202.38,0.03571947]
[1739279171416,0.03414156,202.42,202.39,4.9395]
[1739279171723,0.03414156,202.42,202.39,13.36745331]
[1739279172417,0.03414156,202.42,202.39,4.9395]
[1739279173822,4.97304156,202.42,202.39,4.9395]
[1739279174214,0.03414156,202.42,202.39,4.9395]
[1739279174418,0.03414156,202.42,202.4,4.9394]
[1739279178425,0.03414156,202.42,202.38,0.03571947]
[1739279178722,4.97314156,202.42,202.39,4.9396]
[1739279179626,8.92314156,202.42,202.39,4.9396]
[1739279180224,3.98414156,202.42,202.38,0.03571947]
[1739279180425,4.9394,202.41,202.38,4.97561947]
[1739279181226,4.9394,202.41,202.38,0.03571947]
[1739279181425,4.9394,202.41,202.39,4.9396]
[1739279181625,3.98414156,202.42,202.38,0.03571947]
[1739279181821,3.98414156,202.42,202.39,8.42795331]
[1739279183323,3.98414156,202.42,202.41,4.9392]
[1739279183527,3.98414156,202.42,202.41,13.36715331]
[1739279184629,3.98414156,202.42,202.41,4.9392]
[1739279184830,3.98414156,202.42,202.38,0.03571947]
[1739279185727,4.9392,202.41,202.38,0.03571947]
[1739279185927,3.98414156,202.42,202.38,0.03571947]
[1739279186621,4.9392,202.41,202.38,0.03571947]
[1739279187027,3.98414156,202.42,202.38,0.03571947]
[1739279187226,4.9397,202.39,202.38,0.03571947]
[1739279187537,13.36765331,202.39,202.38,0.03571947]
[1739279188427,4.9397,202.39,202.38,0.03571947]
[1739279190636,13.36765331,202.39,202.38,0.03571947]
[1739279190835,8.42795331,202.39,202.31,8.42795331]
[1739279191032,3.112,202.41,202.31,8.42795331]
[1739279191033,4.9408,202.35,202.32,4.9412]
[1739279192234,0.03262744,202.36,202.32,4.9412]
[1739279192434,4.97302744,202.36,202.32,4.9412]
[1739279194538,4.97302744,202.36,202.31,8.46509862]
[1739279194740,4.97302744,202.36,202.33,4.9411]
[1739279202839,0.03262744,202.36,202.35,4.9406]
[1739279203041,0.03262744,202.36,202.33,8.42795331]
[1739279203343,4.97322744,202.36,202.33,4.9411]
[1739279204143,4.97322744,202.36,202.31,8.46509862]
[1739279204642,0.03262744,202.36,202.33,8.42795331]
[1739279204844,0.03262744,202.36,202.35,13.36855331]
[1739279209246,0.03262744,202.36,202.35,4.9406]
[1739279209946,0.03262744,202.36,202.34,4.9408]
[1739279210642,0.03262744,202.36,202.35,4.9406]
[1739279212647,0.03262744,202.36,202.35,13.36855331]
[1739279219253,8.42795331,202.43,202.35,8.42795331]
[1739279219452,4.9392,202.41,202.37,8.42795331]
[1739279220052,4.9392,202.41,202.38,4.9399]
[1739279220352,4.9392,202.41,202.37,8.42795331]
[1739279220652,4.9392,202.41,202.37,8.46095903]
[1739279220853,4.9392,202.41,202.38,4.9397]
[1739279221052,4.9392,202.41,202.37,8.46095903]
[1739279221451,0.03244335,202.42,202.37,8.46095903]
[1739279221644,0.03244335,202.42,202.39,8.42795331]
[1739279221850,0.03244335,202.42,202.41,13.36715331]
[1739279222552,4.9378,202.47,202.41,8.42795331]
[1739279222758,8.42795331,202.49,202.43,8.42795331]
[1739279223159,12.37795331,202.49,202.42,4.9389]
[1739279223458,8.42795331,202.47,202.41,8.42795331]
[1739279223648,4.9387,202.44,202.42,0.0355948]
[1739279224957,0.03635184,202.46,202.42,0.0355948]
[1739279226655,0.03635184,202.46,202.43,8.42795331]
[1739279227560,0.03635184,202.46,202.45,4.9382]
[1739279228263,0.03635184,202.46,202.43,8.42795331]
[1739279229061,0.03635184,202.46,202.44,4.9384]
[1739279229264,0.03635184,202.46,202.43,8.42795331]
[1739279229464,0.03635184,202.46,202.45,8.42795331]
[1739279229955,5.184e-05,202.46,202.45,13.36615331]
[1739279230154,3.95,202.49,202.45,8.42795331]
[1739279230368,3.95,202.49,202.48,13.36545331]
[1739279230667,1.5352,202.49,202.48,13.36545331]
[1739279231164,1.5352,202.49,202.48,8.42795331]
[1739279231662,1.5352,202.49,202.48,13.36545331]
[1739279234266,1.5352,202.49,202.46,0.03257759]
[1739279234466,4.9377,202.48,202.46,0.03257759]
[1739279234859,1.5352,202.49,202.46,0.03257759]
[1739279235266,1.5352,202.49,202.47,4.9377]
[1739279235571,1.5352,202.49,202.46,0.03257759]
[1739279236065,1.5352,202.49,202.46,8.4605309]
[1739279236367,1.5352,202.49,202.48,8.42795331]
[1739279236966,1.5352,202.49,202.48,13.36545331]
[1739279242369,1.5352,202.49,202.46,8.4605309]
[1739279243070,1.5352,202.49,202.47,4.9375]
[1739279244269,1.5352,202.49,202.48,4.9375]
[1739279244973,1.5352,202.49,202.48,13.36545331]
[1739279246173,4.9363,202.53,202.5,4.937]
[1739279246373,4.9365,202.52,202.48,8.42795331]
[1739279247176,4.9365,202.52,202.48,4.9374]
[1739279247375,4.9369,202.51,202.46,8.4605309]
[1739279247972,4.9369,202.51,202.47,4.9375]
[1739279248176,4.9363,202.53,202.48,8.42795331]
[1739279248875,4.9361,202.54,202.5,4.937]
[1739279249078,8.42795331,202.55,202.48,8.42795331]
[1739279249376,8.42795331,202.55,202.5,0.0336725]
[1739279249579,4.9367,202.52,202.5,0.0336725]
[1739279249774,8.42795331,202.55,202.5,0.0336725]
[1739279249775,8.42795331,202.51,202.5,0.0336725]
[1739279250075,8.42795331,202.51,202.44,8.42795331]
[1739279250469,4.9373,202.49,202.45,4.9381]
[1739279250670,4.9373,202.49,202.44,8.42795331]
[1739279250978,13.36475331,202.51,202.47,4.9375]
[1739279251175,0.03352364,202.49,202.44,8.46216655]
[1739279251673,0.03352364,202.49,202.48,4.9375]
[1739279251867,0.03352364,202.49,202.48,13.36545331]
[1739279259389,2.364e-05,202.49,202.48,13.36545331]
[1739279259589,3.94,202.55,202.54,4.936]
[1739279260682,3.94,202.55,202.54,13.36395331]
[1739279261184,3.94,202.55,202.53,4.9362]
[1739279261991,3.94,202.55,202.52,13.40156225]
[1739279262185,3.94,202.55,202.52,8.46506225]
[1739279262588,3.94,202.55,202.53,4.9362]
[1739279263388,3.94,202.55,202.54,4.936]
[1739279264286,3.94,202.55,202.54,13.36395331]
[1739279266892,3.94,202.55,202.52,13.40146225]
[1739279267286,3.94,202.55,202.52,8.46506225]
[1739279268295,3.94,202.55,202.52,0.03710894]
[1739279268794,8.876,202.55,202.52,0.03710894]
[1739279271093,4.9361,202.54,202.52,0.03710894]
[1739279272584,8.42795331,202.53,202.52,0.03710894]
[1739279272787,13.36425331,202.53,202.52,0.03710894]
[1739279272994,8.42795331,202.53,202.44,8.42795331]
[1739279273197,8.42795331,202.5,202.44,8.42795331]
[1739279273391,13.36495331,202.5,202.46,4.9378]
[1739279273595,13.36495331,202.5,202.44,8.42795331]
[1739279273995,8.42795331,202.5,202.47,4.9376]
[1739279274290,0.03602323,202.49,202.47,4.9376]
[1739279274992,3.98602323,202.49,202.47,4.9376]
[1739279276894,3.98602323,202.49,202.48,4.9375]
[1739279277499,3.98602323,202.49,202.48,13.36545331]
[1739279280601,2.323e-05,202.49,202.48,13.36545331]
[1739279287306,2.323e-05,202.49,202.46,4.9378]
[1739279287610,2.323e-05,202.49,202.45,0.0346281]
[1739279288011,2.323e-05,202.49,202.47,4.9377]
[1739279288200,13.36465331,202.52,202.47,4.9377]
[1739279288610,4.937,202.5,202.45,4.9726281]
[1739279288803,4.937,202.5,202.45,0.0346281]
[1739279289511,4.9368,202.51,202.46,4.9377]
[1739279290209,4.9368,202.51,202.47,4.9376]
[1739279290410,11.49155331,202.54,202.46,8.42795331]
[1739279290611,11.49155331,202.54,202.48,8.42795331]
[1739279290913,16.42775331,202.54,202.49,4.9372]
[1739279291205,16.42775331,202.54,202.48,8.42795331]
[1739279291411,16.42775331,202.54,202.49,4.97159194]
[1739279291810,11.49155331,202.54,202.49,4.97159194]
[1739279292112,11.49155331,202.54,202.51,4.9367]
[1739279292311,11.49155331,202.54,202.49,0.03439194]
[1739279292606,16.42775331,202.54,202.5,4.9369]
[1739279293113,4.9363,202.53,202.5,4.9369]
[1739279293912,16.42765331,202.54,202.49,0.03439194]
[1739279294111,1.5506,202.54,202.49,0.03439194]
[1739279294607,8.42795331,202.58,202.52,8.42795331]
[1739279295011,4.9355,202.57,202.54,4.936]
[1739279295209,8.42795331,202.58,202.53,0.03217429]
[1739279295709,4.936,202.55,202.53,0.03217429]
[1739279296207,8.42795331,202.58,202.53,0.03217429]
[1739279296408,4.936,202.54,202.53,0.03217429]
[1739279299813,4.9355,202.57,202.53,0.03217429]
[1739279301416,8.42795331,202.58,202.53,0.03217429]
[1739279302112,4.9353,202.57,202.54,4.936]
[1739279302416,8.42795331,202.58,202.53,0.03217429]
[1739279303616,1.526,202.6,202.53,0.03217429]
[1739279303617,8.42795331,202.56,202.53,0.03217429]
[1739279304108,4.936,202.54,202.53,0.03217429]
[1739279307515,8.42795331,202.56,202.53,0.03217429]
[1739279307909,8.42795331,202.58,202.53,0.03217429]
[1739279309722,1.526,202.6,202.53,0.03217429]
[1739279309723,4.936,202.55,202.53,0.03217429]
[1739279310021,8.42795331,202.56,202.53,0.03217429]
[1739279310222,4.936,202.54,202.53,0.03217429]
[1739279312029,13.36395331,202.54,202.53,0.03217429]
[1739279312223,8.42795331,202.54,202.46,8.42795331]
[1739279312523,4.937,202.51,202.46,8.42795331]
[1739279312825,4.9371,202.5,202.47,4.9377]
[1739279313724,4.97142392,202.51,202.47,4.9377]
[1739279314820,0.03462392,202.51,202.47,4.9377]
[1739279315025,4.9371,202.5,202.46,13.40064273]
[1739279315622,4.9371,202.5,202.46,8.46274273]
[1739279315820,4.9371,202.5,202.47,4.9376]
[1739279316328,0.03462392,202.51,202.47,4.9376]
[1739279316527,4.97162392,202.51,202.47,4.9376]
[1739279317233,4.97162392,202.51,202.46,8.46274273]
[1739279317530,4.97162392,202.51,202.48,4.9375]
[1739279318128,0.03462392,202.51,202.49,4.9372]
[1739279318729,0.03462392,202.51,202.5,4.937]
[1739279319629,0.03462392,202.51,202.46,8.46274273]
[1739279320825,4.9371,202.5,202.46,13.40044273]
[1739279321330,0.03462392,202.51,202.46,13.40044273]
[1739279321526,4.9373,202.49,202.46,0.03478942]
[1739279321931,0.03462392,202.51,202.46,0.03478942]
[1739279322131,4.9376,202.48,202.46,0.03478942]
[1739279323130,4.9377,202.47,202.46,0.03478942]
[1739279324432,13.36545331,202.48,202.46,0.03478942]
[1739279324930,4.9377,202.47,202.46,0.03478942]
[1739279325430,8.42795331,202.48,202.36,8.42795331]
[1739279325629,13.36665331,202.43,202.36,8.42795331]
[1739279325830,13.36665331,202.43,202.35,1.5995]
[1739279325831,4.9387,202.43,202.39,4.9394]
[1739279326033,14.90395331,202.47,202.4,8.42795331]
[1739279326533,0.03502393,202.46,202.42,4.9388]
[1739279327229,4.97302393,202.46,202.42,4.9388]
[1739279327629,4.97302393,202.46,202.43,4.9387]
[1739279330631,0.03502393,202.46,202.42,8.42795331]
[1739279331127,4.97322393,202.46,202.42,13.36685331]
[1739279331331,0.03502393,202.46,202.41,0.0332767]
[1739279331728,4.9386,202.44,202.41,4.9723767]
[1739279331931,0.03502393,202.46,202.41,0.0332767]
[1739279332435,4.9388,202.43,202.41,0.0332767]
[1739279332630,8.42795331,202.45,202.41,0.0332767]
[1739279333134,0.03502393,202.46,202.41,0.0332767]
[1739279333727,4.9385,202.44,202.41,4.9724767]
[1739279334837,4.9383,202.45,202.42,4.9389]
[1739279335436,4.97302393,202.46,202.41,0.0332767]
[1739279335637,0.03502393,202.46,202.42,8.42795331]
[1739279336137,0.03502393,202.46,202.43,4.9385]
[1739279336938,0.03502393,202.46,202.44,4.9384]
[1739279339638,4.97302393,202.46,202.44,4.9384]
[1739279339940,4.97302393,202.46,202.43,4.9387]
[1739279340138,4.9382,202.45,202.41,0.0332767]
[1739279340334,8.42795331,202.45,202.41,0.0332767]
[1739279341341,4.9389,202.43,202.41,0.0332767]
[1739279341836,8.42795331,202.45,202.41,0.0332767]
[1739279342045,8.42795331,202.45,202.41,4.9723767]
[1739279343750,4.9386,202.44,202.41,4.9723767]
[1739279344052,8.42795331,202.45,202.41,0.0332767]
[1739279344245,0.03502393,202.46,202.41,0.0332767]
[1739279345548,4.9389,202.43,202.41,0.0332767]
[1739279346348,9.91142393,202.46,202.29,12.85288624]
[1739279346547,8.42795331,202.3,202.19,205.34155542]
[1739279346747,8.42795331,202.24,202.19,205.34155542]
[1739279346942,13.37125331,202.24,202.19,205.34155542]
[1739279347244,8.42795331,202.24,202.19,205.34155542]
[1739279347444,4.9436,202.23,202.22,134.50154802]
[1739279349353,4.9438,202.22,202.21,0.03676771]
[1739279349545,13.37175331,202.22,202.21,0.03676771]
[1739279349750,18.15451828,202.22,202.21,0.03676771]
[1739279355263,4.9438,202.22,202.21,0.03676771]
[1739279356457,18.15451828,202.22,202.21,0.03676771]
[1739279358864,13.21071828,202.22,202.08,13.21071828]
[1739279359065,1.5689,202.29,202.1,4.9467]
[1739279359066,13.21071828,202.18,202.1,4.9467]
[1739279359565,4.9458,202.15,202.1,4.9467]
[1739279359961,4.98321127,202.15,202.1,0.03396357]
[1739279360261,0.03741127,202.15,202.1,0.03396357]
[1739279360863,0.03741127,202.15,202.14,4.9458]
[1739279361059,13.21071828,202.24,202.11,13.21071828]
[1739279361263,4.9441,202.21,202.11,13.21071828]
[1739279361459,4.9441,202.21,202.14,4.9458]
[1739279361658,13.21071828,202.27,202.15,3.0892]
[1739279361862,4.9438,202.22,202.15,3.0892]
[1739279362058,4.9438,202.22,202.16,0.03561894]
[1739279362269,0.03589914,202.21,202.18,4.9446]
[1739279362467,0.03589914,202.21,202.16,0.03561894]
[1739279363870,0.03589914,202.21,202.18,4.9446]
[1739279364169,0.03589914,202.21,202.16,0.03561894]
[1739279364566,4.945,202.18,202.16,0.03561894]
[1739279365069,0.03589914,202.21,202.16,0.03561894]
[1739279365369,4.9444,202.2,202.16,0.03561894]
[1739279365570,13.24661742,202.21,202.16,0.03561894]
[1739279365970,4.945,202.17,202.16,0.03561894]
[1739279366870,4.945,202.17,202.16,1.894e-05]
[1739279367071,13.21071828,202.18,202.09,1.5477]
[1739279367369,13.21071828,202.14,202.09,1.5477]
[1739279367571,4.9466,202.11,202.09,1.5477]
[1739279368166,0.03751609,202.12,202.09,1.5477]
[1739279368367,0.03751609,202.12,202.08,0.03554912]
[1739279369467,4.9466,202.11,202.08,0.03554912]
[1739279369869,0.03751609,202.12,202.08,0.03554912]
[1739279370270,4.9466,202.11,202.08,0.03554912]
[1739279370572,0.03751609,202.12,202.08,0.03554912]
[1739279372568,4.947,202.09,202.08,0.03554912]
[1739279374971,13.21071828,202.11,202.08,0.03554912]
[1739279375275,0.03751609,202.12,202.08,0.03554912]
[1739279375675,4.9468,202.1,202.08,0.03554912]
[1739279376979,22.20427598,202.11,202.08,0.03554912]
[1739279377275,22.20427598,202.11,202.09,4.947]
[1739279377479,27.15097598,202.11,202.08,0.03554912]
[1739279378182,22.20427598,202.11,202.08,0.03554912]
[1739279378979,0.03751609,202.12,202.08,0.03554912]
[1739279380081,4.9468,202.1,202.08,0.03554912]
[1739279380581,0.03751609,202.12,202.08,0.03554912]
[1739279380782,4.9466,202.11,202.08,0.03554912]
[1739279381582,4.98381609,202.12,202.08,0.03554912]
[1739279382184,4.98381609,202.12,202.09,4.947]
[1739279382582,4.9466,202.11,202.08,4.98264912]
[1739279383185,0.03751609,202.12,202.08,4.98264912]
[1739279383388,0.03751609,202.12,202.08,0.03554912]
[1739279383783,0.03751609,202.12,202.1,4.9466]
[1739279384182,0.03751609,202.12,202.08,0.03554912]
[1739279384579,0.03751609,202.12,202.1,4.9466]
[1739279385484,0.03751609,202.12,202.08,0.03554912]
[1739279386285,4.947,202.1,202.08,0.03554912]
[1739279387684,4.947,202.09,202.08,0.03554912]
[1739279388483,8.45940979,202.11,202.08,0.03554912]
[1739279388693,4.9468,202.1,202.08,0.03554912]
[1739279392693,4.9466,202.11,202.09,4.947]
[1739279392994,0.03751609,202.12,202.08,0.03554912]
[1739279393190,4.98391609,202.12,202.08,0.03554912]
[1739279393393,4.98391609,202.12,202.09,4.9468]
[1739279393994,0.03751609,202.12,202.08,0.03554912]
[1739279394494,0.03751609,202.12,202.09,4.947]
[1739279395793,4.98391609,202.12,202.09,4.947]
[1739279396189,4.98391609,202.12,202.08,4.98274912]
[1739279396883,4.98381609,202.12,202.09,4.9468]
[1739279399399,0.03751609,202.12,202.1,4.9467]
[1739279399799,0.03751609,202.12,202.08,0.03554912]
[1739279399997,0.03751609,202.12,202.09,4.9468]
[1739279400500,0.03751609,202.12,202.1,4.9466]
[1739279402299,0.03751609,202.12,202.11,4.9465]
[1739279403797,0.03751609,202.12,202.08,0.03554912]
[1739279404001,0.03751609,202.12,202.09,4.9469]
[1739279404997,0.03751609,202.12,202.08,4.98274912]
[1739279405200,0.03751609,202.12,202.08,0.03554912]
[1739279406802,0.03751609,202.12,202.11,4.9465]
[1739279407400,0.03751609,202.12,202.1,4.9467]
[1739279407702,0.03751609,202.12,202.08,0.03554912]
[1739279408801,0.03751609,202.12,202.11,4.9465]
[1739279409203,0.03751609,202.12,202.09,8.45940979]
[1739279409403,4.98381609,202.12,202.09,4.947]
[1739279410205,0.03751609,202.12,202.08,0.03554912]
[1739279410400,8.45940979,202.11,202.1,128.31635765]
[1739279410900,13.40610979,202.11,202.1,128.31635765]
[1739279412802,13.40610979,202.11,202.1,11.82376705]
[1739279413005,4.9468,202.1,202.09,113.75975396]
[1739279413207,4.9468,202.1,202.09,103.58885396]
[1739279413703,4.9468,202.1,202.09,55.11019665]
[1739279416607,4.9468,202.1,202.06,103.58885396]
[1739279416608,4.9475,202.07,202.06,103.58885396]
[1739279416810,8.45940979,202.07,201.95,15.34215337]
[1739279417107,8.45940979,202.01,201.99,4.9493]
[1739279417312,8.45940979,202.01,201.95,15.34215337]
[1739279417512,8.45940979,202.01,201.95,6.88274358]
[1739279417715,8.45940979,202.01,201.97,0.0379962]
[1739279418311,8.45940979,202.01,201.99,4.9493]
[1739279419312,8.45940979,202.01,202.0,4.9492]